[Event "Titled Tuesday Blitz October 26 2021"]
[White "Shipov, Sergei"]
[Black "Wadsworth, Matthew J"]
[WhiteFideId "4113624"]
[BlackFideId "415804"]
[WhiteElo "2790"]
[BlackElo "2293"]
[Result "1-0"]
[Round "02"]
[TimeControl "180+1"]
[Date "2021.10.26"]
[WhiteClock "0:01:46"]
[BlackClock "0:00:40"]

1. d4 {[%clk 0:03:00]}  Nf6 {[%clk 0:02:59]} 2. c4 {[%clk 0:03:00]}  c5 {[%clk 0:02:59]} 3. d5 {[%clk 0:03:00]}  e6 {[%clk 0:02:59]} 4. Nc3 {[%clk 0:03:00]}  exd5 {[%clk 0:03:00]} 5. cxd5 {[%clk 0:03:00]}  d6 {[%clk 0:03:00]} 6. e4 {[%clk 0:03:00]}  g6 {[%clk 0:03:01]} 7. Bd3 {[%clk 0:03:00]}  Bg7 {[%clk 0:03:01]} 8. h3 {[%clk 0:03:01]}  O-O {[%clk 0:03:00]} 9. Bg5 {[%clk 0:03:01]}  a6 {[%clk 0:02:58]} 10. a4 {[%clk 0:03:01]}  Nbd7 {[%clk 0:02:57]} 11. Nf3 {[%clk 0:03:01]}  h6 {[%clk 0:02:50]} 12. Bf4 {[%clk 0:03:00]}  Qe7 {[%clk 0:02:45]} 13. O-O {[%clk 0:03:00]}  Nh5 {[%clk 0:02:45]} 14. Bh2 {[%clk 0:02:57]}  Ne5 {[%clk 0:02:44]} 15. Be2 {[%clk 0:02:57]}  Nxf3+ {[%clk 0:02:38]} 16. Bxf3 {[%clk 0:02:57]}  Nf6 {[%clk 0:02:37]} 17. e5 {[%clk 0:02:57]}  dxe5 {[%clk 0:02:36]} 18. Re1 {[%clk 0:02:57]}  Ne8 {[%clk 0:02:33]} 19. Ne4 {[%clk 0:02:21]}  f5 {[%clk 0:02:24]} 20. d6 {[%clk 0:02:20]}  Nxd6 {[%clk 0:02:10]} 21. Qxd6 {[%clk 0:02:19]}  Qxd6 {[%clk 0:02:11]} 22. Nxd6 {[%clk 0:02:19]}  e4 {[%clk 0:02:11]} 23. Be2 {[%clk 0:02:19]}  Bxb2 {[%clk 0:02:03]} 24. Rab1 {[%clk 0:02:19]}  Bd4 {[%clk 0:02:01]} 25. Nxc8 {[%clk 0:02:16]}  Raxc8 {[%clk 0:01:57]} 26. Bc4+ {[%clk 0:02:16]}  Kh8 {[%clk 0:01:50]} 27. Rxb7 {[%clk 0:02:16]}  Rc6 {[%clk 0:01:34]} 28. h4 {[%clk 0:02:03]}  g5 {[%clk 0:01:23]} 29. h5 {[%clk 0:02:01]}  Rff6 {[%clk 0:01:12]} 30. Rb8+ {[%clk 0:01:51]}  Kg7 {[%clk 0:01:11]} 31. Reb1 {[%clk 0:01:51]}  Rfd6 {[%clk 0:00:39]} 32. R1b7+ {[%clk 0:01:46]}  Kf6 {[%clk 0:00:40]} 33. Rf8# {[%clk 0:01:46]} 1-0


[Site "https://www.chess.com"]

[Event "Titled Tuesday Blitz October 26 2021"]
[White "Svane, Frederik"]
[Black "Derjabin, Ilja"]
[WhiteFideId "12923044"]
[BlackFideId "14104768"]
[WhiteElo "2459"]
[BlackElo "2382"]
[Result "1-0"]
[Round "02"]
[TimeControl "180+1"]
[Date "2021.10.26"]
[WhiteClock "0:00:07"]
[BlackClock "0:00:08"]

1. c4 {[%clk 0:03:00]}  c5 {[%clk 0:02:38]} 2. Nc3 {[%clk 0:03:00]}  Nc6 {[%clk 0:02:37]} 3. Nf3 {[%clk 0:03:00]}  Nf6 {[%clk 0:02:37]} 4. g3 {[%clk 0:02:57]}  g6 {[%clk 0:02:37]} 5. Bg2 {[%clk 0:02:57]}  Bg7 {[%clk 0:02:36]} 6. O-O {[%clk 0:02:57]}  O-O {[%clk 0:02:36]} 7. d4 {[%clk 0:02:54]}  cxd4 {[%clk 0:02:35]} 8. Nxd4 {[%clk 0:02:54]}  Nxd4 {[%clk 0:02:36]} 9. Qxd4 {[%clk 0:02:55]}  d6 {[%clk 0:02:36]} 10. Qd2 {[%clk 0:02:51]}  Qa5 {[%clk 0:02:31]} 11. Nd5 {[%clk 0:02:45]}  Qd8 {[%clk 0:02:29]} 12. Nc3 {[%clk 0:02:42]}  Qa5 {[%clk 0:02:27]} 13. b3 {[%clk 0:02:25]}  Qh5 {[%clk 0:02:16]} 14. Qg5 {[%clk 0:02:10]}  Rb8 {[%clk 0:02:04]} 15. Qxh5 {[%clk 0:02:08]}  Nxh5 {[%clk 0:02:04]} 16. Bb2 {[%clk 0:02:05]}  b6 {[%clk 0:01:57]} 17. Rac1 {[%clk 0:01:56]}  Bb7 {[%clk 0:01:55]} 18. e4 {[%clk 0:01:48]}  Rfe8 {[%clk 0:01:43]} 19. Rfe1 {[%clk 0:01:43]}  Nf6 {[%clk 0:01:41]} 20. Re2 {[%clk 0:01:28]}  Nd7 {[%clk 0:01:40]} 21. Nd5 {[%clk 0:01:18]}  Bxd5 {[%clk 0:01:34]} 22. exd5 {[%clk 0:01:15]}  Bxb2 {[%clk 0:01:28]} 23. Rxb2 {[%clk 0:01:16]}  Rb7 {[%clk 0:01:10]} 24. Re2 {[%clk 0:00:56]}  Rc7 {[%clk 0:01:04]} 25. Rce1 {[%clk 0:00:50]}  Kf8 {[%clk 0:01:04]} 26. Re3 {[%clk 0:00:45]}  a6 {[%clk 0:00:56]} 27. Bf1 {[%clk 0:00:45]}  g5 {[%clk 0:00:50]} 28. Kg2 {[%clk 0:00:30]}  h6 {[%clk 0:00:48]} 29. f4 {[%clk 0:00:18]}  f6 {[%clk 0:00:46]} 30. Kf3 {[%clk 0:00:17]}  Nc5 {[%clk 0:00:45]} 31. Kg4 {[%clk 0:00:11]}  Kg7 {[%clk 0:00:38]} 32. h4 {[%clk 0:00:10]}  Kf7 {[%clk 0:00:14]} 33. fxg5 {[%clk 0:00:03]}  hxg5 {[%clk 0:00:15]} 34. h5 {[%clk 0:00:02]}  Nd7 {[%clk 0:00:15]} 35. Bd3 {[%clk 0:00:02]}  Kf8 {[%clk 0:00:10]} 36. Bg6 {[%clk 0:00:02]}  Ne5+ {[%clk 0:00:09]} 37. Rxe5 {[%clk 0:00:02]}  dxe5 {[%clk 0:00:10]} 38. Bxe8 {[%clk 0:00:02]}  Kxe8 {[%clk 0:00:11]} 39. Kf5 {[%clk 0:00:03]}  Kf7 {[%clk 0:00:11]} 40. g4 {[%clk 0:00:03]}  b5 {[%clk 0:00:10]} 41. Rc1 {[%clk 0:00:03]}  bxc4 {[%clk 0:00:10]} 42. Rxc4 {[%clk 0:00:03]}  Rd7 {[%clk 0:00:09]} 43. Rc5 {[%clk 0:00:03]}  Rxd5 {[%clk 0:00:07]} 44. Rxd5 {[%clk 0:00:03]}  e6+ {[%clk 0:00:07]} 45. Ke4 {[%clk 0:00:04]}  exd5+ {[%clk 0:00:07]} 46. Kxd5 {[%clk 0:00:05]}  Ke7 {[%clk 0:00:06]} 47. Ke4 {[%clk 0:00:05]}  Ke6 {[%clk 0:00:06]} 48. b4 {[%clk 0:00:05]}  f5+ {[%clk 0:00:06]} 49. gxf5+ {[%clk 0:00:06]}  Kf6 {[%clk 0:00:07]} 50. h6 {[%clk 0:00:06]}  g4 {[%clk 0:00:07]} 51. a4 {[%clk 0:00:06]}  g3 {[%clk 0:00:07]} 52. Kf3 {[%clk 0:00:07]}  e4+ {[%clk 0:00:07]} 53. Kxg3 {[%clk 0:00:07]}  Kxf5 {[%clk 0:00:08]} 54. h7 {[%clk 0:00:07]} 1-0


[Site "https://www.chess.com"]

[Event "Titled Tuesday Blitz October 26 2021"]
[White "Sviridov, Valery"]
[Black "Matveev, Vladimir"]
[WhiteFideId "4120680"]
[BlackFideId "24130753"]
[WhiteElo "2454"]
[BlackElo "2354"]
[Result "1-0"]
[Round "02"]
[TimeControl "180+1"]
[Date "2021.10.26"]
[WhiteClock "0:02:18"]
[BlackClock "0:01:06"]

1. Nf3 {[%clk 0:03:00]}  Nf6 {[%clk 0:03:00]} 2. g3 {[%clk 0:03:00]}  g6 {[%clk 0:03:00]} 3. Bg2 {[%clk 0:03:00]}  Bg7 {[%clk 0:03:01]} 4. O-O {[%clk 0:03:01]}  O-O {[%clk 0:03:02]} 5. c4 {[%clk 0:03:01]}  d6 {[%clk 0:03:02]} 6. Nc3 {[%clk 0:03:02]}  e5 {[%clk 0:03:02]} 7. d4 {[%clk 0:03:02]}  Nc6 {[%clk 0:03:01]} 8. dxe5 {[%clk 0:03:02]}  dxe5 {[%clk 0:02:58]} 9. Bg5 {[%clk 0:03:00]}  Bd7 {[%clk 0:02:58]} 10. Nd5 {[%clk 0:02:58]}  Bg4 {[%clk 0:02:32]} 11. Nd2 {[%clk 0:02:56]}  Bf5 {[%clk 0:02:11]} 12. g4 {[%clk 0:02:34]}  Be6 {[%clk 0:02:10]} 13. Ne4 {[%clk 0:02:34]}  Bxd5 {[%clk 0:02:08]} 14. cxd5 {[%clk 0:02:35]}  Nb4 {[%clk 0:01:50]} 15. f4 {[%clk 0:02:33]}  h6 {[%clk 0:01:44]} 16. Nxf6+ {[%clk 0:02:28]}  Bxf6 {[%clk 0:01:44]} 17. Bxh6 {[%clk 0:02:29]}  Re8 {[%clk 0:01:44]} 18. Qd2 {[%clk 0:02:26]}  Na6 {[%clk 0:01:38]} 19. f5 {[%clk 0:02:21]}  g5 {[%clk 0:01:23]} 20. h4 {[%clk 0:02:22]}  gxh4 {[%clk 0:01:23]} 21. g5 {[%clk 0:02:22]}  Bh8 {[%clk 0:01:21]} 22. f6 {[%clk 0:02:18]}  e4 {[%clk 0:01:06]} 23. g6 {[%clk 0:02:18]} 1-0


[Site "https://www.chess.com"]

[Event "Titled Tuesday Blitz October 26 2021"]
[White "Timofeev, Artyom"]
[Black "Vlachos, Anatole"]
[WhiteFideId "4140419"]
[BlackFideId "26093189"]
[WhiteElo "2591"]
[BlackElo "2350"]
[Result "1-0"]
[Round "02"]
[TimeControl "180+1"]
[Date "2021.10.26"]
[WhiteClock "0:00:22"]
[BlackClock "0:00:02"]

1. c4 {[%clk 0:03:00]}  e6 {[%clk 0:02:59]} 2. Nf3 {[%clk 0:02:59]}  d5 {[%clk 0:03:00]} 3. b3 {[%clk 0:02:59]}  Nf6 {[%clk 0:02:58]} 4. Bb2 {[%clk 0:02:59]}  Be7 {[%clk 0:02:58]} 5. g3 {[%clk 0:02:57]}  O-O {[%clk 0:02:55]} 6. Bg2 {[%clk 0:02:58]}  dxc4 {[%clk 0:02:53]} 7. bxc4 {[%clk 0:02:57]}  c5 {[%clk 0:02:54]} 8. O-O {[%clk 0:02:56]}  Nc6 {[%clk 0:02:54]} 9. d3 {[%clk 0:02:54]}  Qc7 {[%clk 0:02:50]} 10. Nc3 {[%clk 0:02:53]}  a6 {[%clk 0:02:51]} 11. a4 {[%clk 0:02:39]}  b6 {[%clk 0:02:50]} 12. a5 {[%clk 0:02:39]}  Nxa5 {[%clk 0:02:43]} 13. e4 {[%clk 0:02:37]}  Nc6 {[%clk 0:02:38]} 14. e5 {[%clk 0:02:36]}  Nd7 {[%clk 0:02:38]} 15. Re1 {[%clk 0:02:26]}  Bb7 {[%clk 0:02:38]} 16. Qe2 {[%clk 0:02:21]}  Nd4 {[%clk 0:02:10]} 17. Nxd4 {[%clk 0:02:14]}  Bxg2 {[%clk 0:02:11]} 18. Nxe6 {[%clk 0:02:04]}  fxe6 {[%clk 0:01:47]} 19. Kxg2 {[%clk 0:02:04]}  Rf5 {[%clk 0:01:47]} 20. f4 {[%clk 0:01:44]}  g5 {[%clk 0:01:47]} 21. Bc1 {[%clk 0:01:44]}  Kh8 {[%clk 0:01:37]} 22. g4 {[%clk 0:01:24]}  Rff8 {[%clk 0:01:37]} 23. fxg5 {[%clk 0:01:22]}  Nb8 {[%clk 0:01:11]} 24. Qe4 {[%clk 0:01:19]}  Nc6 {[%clk 0:01:09]} 25. Bf4 {[%clk 0:01:16]}  Nd4 {[%clk 0:01:05]} 26. Rf1 {[%clk 0:01:16]}  Rad8 {[%clk 0:00:53]} 27. h4 {[%clk 0:01:14]}  Nc2 {[%clk 0:00:47]} 28. Rad1 {[%clk 0:01:11]}  Rd4 {[%clk 0:00:47]} 29. Qe2 {[%clk 0:01:07]}  Rdxf4 {[%clk 0:00:38]} 30. Rxf4 {[%clk 0:01:06]}  Rxf4 {[%clk 0:00:39]} 31. Qxc2 {[%clk 0:01:06]}  Qxe5 {[%clk 0:00:36]} 32. Ne4 {[%clk 0:01:05]}  Rxg4+ {[%clk 0:00:35]} 33. Kh3 {[%clk 0:01:05]}  Qf4 {[%clk 0:00:19]} 34. Qf2 {[%clk 0:01:03]}  Rxh4+ {[%clk 0:00:15]} 35. Qxh4 {[%clk 0:01:00]}  Qf3+ {[%clk 0:00:15]} 36. Ng3 {[%clk 0:00:52]}  Qxd1 {[%clk 0:00:15]} 37. Qe4 {[%clk 0:00:53]}  Qd2 {[%clk 0:00:03]} 38. Qe5+ {[%clk 0:00:53]}  Kg8 {[%clk 0:00:03]} 39. Qxe6+ {[%clk 0:00:53]}  Kf8 {[%clk 0:00:03]} 40. Qf5+ {[%clk 0:00:44]}  Ke8 {[%clk 0:00:03]} 41. Qc8+ {[%clk 0:00:41]}  Bd8 {[%clk 0:00:02]} 42. Qe6+ {[%clk 0:00:40]}  Be7 {[%clk 0:00:02]} 43. Ne4 {[%clk 0:00:27]}  Qe3+ {[%clk 0:00:02]} 44. Kg4 {[%clk 0:00:28]}  Qe2+ {[%clk 0:00:02]} 45. Kf5 {[%clk 0:00:24]}  Qf3+ {[%clk 0:00:02]} 46. Ke5 {[%clk 0:00:24]}  Qf7 {[%clk 0:00:02]} 47. Nd6+ {[%clk 0:00:22]} 1-0


[Site "https://www.chess.com"]

[Event "Titled Tuesday Blitz October 26 2021"]
[White "Yeletsky, Ivan"]
[Black "Oganisian, Roman"]
[WhiteFideId "24180327"]
[BlackFideId "4153006"]
[WhiteElo "2352"]
[BlackElo "2204"]
[Result "1-0"]
[Round "02"]
[TimeControl "180+1"]
[Date "2021.10.26"]
[WhiteClock "0:00:03"]
[BlackClock "0:00:01"]

1. c4 {[%clk 0:03:00]}  e6 {[%clk 0:02:58]} 2. Nf3 {[%clk 0:03:00]}  f5 {[%clk 0:02:58]} 3. b3 {[%clk 0:02:57]}  Nf6 {[%clk 0:02:58]} 4. Bb2 {[%clk 0:02:57]}  g6 {[%clk 0:02:49]} 5. e3 {[%clk 0:02:39]}  Bg7 {[%clk 0:02:49]} 6. Qc2 {[%clk 0:02:39]}  O-O {[%clk 0:02:47]} 7. Be2 {[%clk 0:02:39]}  b6 {[%clk 0:02:43]} 8. Nc3 {[%clk 0:02:38]}  Bb7 {[%clk 0:02:43]} 9. h4 {[%clk 0:02:38]}  h6 {[%clk 0:02:32]} 10. Ne5 {[%clk 0:02:29]}  Qe8 {[%clk 0:02:20]} 11. Bf3 {[%clk 0:02:29]}  c6 {[%clk 0:02:01]} 12. h5 {[%clk 0:02:22]}  gxh5 {[%clk 0:01:50]} 13. Ba3 {[%clk 0:02:05]}  Ng4 {[%clk 0:01:38]} 14. Nd3 {[%clk 0:01:58]}  Rf6 {[%clk 0:01:30]} 15. Nf4 {[%clk 0:01:57]}  e5 {[%clk 0:01:20]} 16. Nxh5 {[%clk 0:01:51]}  Rf7 {[%clk 0:01:20]} 17. Bxg4 {[%clk 0:01:51]}  fxg4 {[%clk 0:01:19]} 18. Qg6 {[%clk 0:01:52]}  Qe6 {[%clk 0:01:01]} 19. Qxe6 {[%clk 0:01:49]}  dxe6 {[%clk 0:01:01]} 20. Nxg7 {[%clk 0:01:22]}  Kxg7 {[%clk 0:01:02]} 21. Ne4 {[%clk 0:01:05]}  c5 {[%clk 0:00:45]} 22. Nd6 {[%clk 0:01:05]}  Bxg2 {[%clk 0:00:45]} 23. Rg1 {[%clk 0:00:57]}  Rd7 {[%clk 0:00:42]} 24. Ne8+ {[%clk 0:00:46]}  Kf7 {[%clk 0:00:37]} 25. Rxg2 {[%clk 0:00:47]}  Kxe8 {[%clk 0:00:37]} 26. Rxg4 {[%clk 0:00:47]}  Rf7 {[%clk 0:00:26]} 27. Rg6 {[%clk 0:00:46]}  Ke7 {[%clk 0:00:23]} 28. Rxh6 {[%clk 0:00:37]}  Nc6 {[%clk 0:00:22]} 29. Ke2 {[%clk 0:00:37]}  Rg8 {[%clk 0:00:20]} 30. Rh2 {[%clk 0:00:31]}  e4 {[%clk 0:00:18]} 31. Rah1 {[%clk 0:00:17]}  Ne5 {[%clk 0:00:17]} 32. Rh7 {[%clk 0:00:17]}  Rf8 {[%clk 0:00:13]} 33. R1h2 {[%clk 0:00:09]}  Nd3 {[%clk 0:00:12]} 34. Rxf7+ {[%clk 0:00:08]}  Rxf7 {[%clk 0:00:12]} 35. Rg2 {[%clk 0:00:05]}  Kd6 {[%clk 0:00:11]} 36. Rh2 {[%clk 0:00:04]}  Rg7 {[%clk 0:00:10]} 37. f3 {[%clk 0:00:03]}  Ne5 {[%clk 0:00:07]} 38. fxe4 {[%clk 0:00:03]}  Rg4 {[%clk 0:00:06]} 39. d3 {[%clk 0:00:04]}  Rg1 {[%clk 0:00:04]} 40. Rh5 {[%clk 0:00:04]}  Ra1 {[%clk 0:00:04]} 41. d4 {[%clk 0:00:03]}  Rxa2+ {[%clk 0:00:03]} 42. Kf1 {[%clk 0:00:02]}  Rxa3 {[%clk 0:00:03]} 43. dxe5+ {[%clk 0:00:03]}  Kc6 {[%clk 0:00:03]} 44. Rh6 {[%clk 0:00:04]}  Ra1+ {[%clk 0:00:03]} 45. Kf2 {[%clk 0:00:04]}  Ra2+ {[%clk 0:00:04]} 46. Kf3 {[%clk 0:00:04]}  Kd7 {[%clk 0:00:04]} 47. Rh7+ {[%clk 0:00:04]}  Kc6 {[%clk 0:00:05]} 48. Re7 {[%clk 0:00:04]}  Rb2 {[%clk 0:00:04]} 49. Rxe6+ {[%clk 0:00:05]}  Kd7 {[%clk 0:00:05]} 50. Rh6 {[%clk 0:00:05]}  Rxb3 {[%clk 0:00:05]} 51. Kf4 {[%clk 0:00:06]}  a5 {[%clk 0:00:04]} 52. e6+ {[%clk 0:00:04]}  Kd6 {[%clk 0:00:03]} 53. e5+ {[%clk 0:00:03]}  Ke7 {[%clk 0:00:03]} 54. Kf5 {[%clk 0:00:03]}  Rxe3 {[%clk 0:00:03]} 55. Rh7+ {[%clk 0:00:04]}  Ke8 {[%clk 0:00:04]} 56. Rb7 {[%clk 0:00:03]}  Rf3+ {[%clk 0:00:03]} 57. Ke4 {[%clk 0:00:03]}  Rb3 {[%clk 0:00:04]} 58. Kd5 {[%clk 0:00:03]}  a4 {[%clk 0:00:04]} 59. Ra7 {[%clk 0:00:03]}  a3 {[%clk 0:00:03]} 60. e7 {[%clk 0:00:03]}  a2 {[%clk 0:00:01]} 61. Ke6 {[%clk 0:00:03]} 1-0


[Site "https://www.chess.com"]

[Event "Titled Tuesday Blitz October 26 2021"]
[White "Avila Pavas, Santiago"]
[Black "Timofeev, Artyom"]
[WhiteFideId "4437128"]
[BlackFideId "4140419"]
[WhiteElo "2292"]
[BlackElo "2591"]
[Result "0-1"]
[Round "03"]
[TimeControl "180+1"]
[Date "2021.10.26"]
[WhiteClock "0:00:02"]
[BlackClock "0:00:08"]

1. d4 {[%clk 0:03:00]}  Nf6 {[%clk 0:02:59]} 2. Nf3 {[%clk 0:03:00]}  b6 {[%clk 0:02:58]} 3. c4 {[%clk 0:02:56]}  Bb7 {[%clk 0:02:59]} 4. Nc3 {[%clk 0:02:56]}  g6 {[%clk 0:02:57]} 5. Qc2 {[%clk 0:02:55]}  Bg7 {[%clk 0:02:55]} 6. e4 {[%clk 0:02:55]}  O-O {[%clk 0:02:55]} 7. Be2 {[%clk 0:02:55]}  e6 {[%clk 0:02:55]} 8. O-O {[%clk 0:02:56]}  d5 {[%clk 0:02:53]} 9. e5 {[%clk 0:02:55]}  Ne4 {[%clk 0:02:53]} 10. cxd5 {[%clk 0:02:50]}  exd5 {[%clk 0:02:52]} 11. Be3 {[%clk 0:02:48]}  c5 {[%clk 0:02:49]} 12. dxc5 {[%clk 0:02:40]}  bxc5 {[%clk 0:02:45]} 13. Rfd1 {[%clk 0:02:39]}  Nxc3 {[%clk 0:02:42]} 14. Qxc3 {[%clk 0:02:31]}  Nd7 {[%clk 0:02:24]} 15. Bxc5 {[%clk 0:02:18]}  Rc8 {[%clk 0:02:23]} 16. b4 {[%clk 0:02:18]}  Re8 {[%clk 0:02:23]} 17. Bb5 {[%clk 0:02:17]}  Nxc5 {[%clk 0:02:09]} 18. bxc5 {[%clk 0:02:15]}  Re6 {[%clk 0:02:05]} 19. Rac1 {[%clk 0:02:01]}  Bc6 {[%clk 0:01:52]} 20. Bxc6 {[%clk 0:01:58]}  Rexc6 {[%clk 0:01:52]} 21. Qd4 {[%clk 0:01:58]}  Bf8 {[%clk 0:01:42]} 22. Qxd5 {[%clk 0:01:53]}  Qxd5 {[%clk 0:01:42]} 23. Rxd5 {[%clk 0:01:53]}  Bxc5 {[%clk 0:01:42]} 24. Kf1 {[%clk 0:01:39]}  Bb6 {[%clk 0:01:41]} 25. Rxc6 {[%clk 0:01:39]}  Rxc6 {[%clk 0:01:42]} 26. Ke2 {[%clk 0:01:37]}  Rc4 {[%clk 0:01:37]} 27. Rd2 {[%clk 0:01:28]}  Ra4 {[%clk 0:01:35]} 28. Kd3 {[%clk 0:01:27]}  Kf8 {[%clk 0:01:30]} 29. Re2 {[%clk 0:01:26]}  Ke7 {[%clk 0:01:28]} 30. Kc3 {[%clk 0:01:26]}  h6 {[%clk 0:01:26]} 31. h3 {[%clk 0:01:24]}  g5 {[%clk 0:01:25]} 32. Nd2 {[%clk 0:01:13]}  Rxa2 {[%clk 0:01:20]} 33. Kb3 {[%clk 0:01:12]}  Ra1 {[%clk 0:01:16]} 34. Ne4 {[%clk 0:01:13]}  Ke6 {[%clk 0:01:10]} 35. Nf6 {[%clk 0:00:59]}  Ra5 {[%clk 0:01:01]} 36. Ng8 {[%clk 0:00:55]}  h5 {[%clk 0:01:00]} 37. Nh6 {[%clk 0:00:51]}  Bc7 {[%clk 0:00:44]} 38. g4 {[%clk 0:00:42]}  h4 {[%clk 0:00:40]} 39. Nf5 {[%clk 0:00:38]}  Rxe5 {[%clk 0:00:39]} 40. Ra2 {[%clk 0:00:38]}  Bb6 {[%clk 0:00:38]} 41. Kc4 {[%clk 0:00:34]}  Re4+ {[%clk 0:00:38]} 42. Kd3 {[%clk 0:00:33]}  Rf4 {[%clk 0:00:38]} 43. Re2+ {[%clk 0:00:33]}  Kf6 {[%clk 0:00:38]} 44. Rc2 {[%clk 0:00:31]}  Rxf2 {[%clk 0:00:35]} 45. Rc1 {[%clk 0:00:23]}  Rxf5 {[%clk 0:00:32]} 46. gxf5 {[%clk 0:00:23]}  Kxf5 {[%clk 0:00:32]} 47. Rf1+ {[%clk 0:00:22]}  Kg6 {[%clk 0:00:32]} 48. Ke4 {[%clk 0:00:23]}  f6 {[%clk 0:00:30]} 49. Kd5 {[%clk 0:00:22]}  f5 {[%clk 0:00:29]} 50. Ke6 {[%clk 0:00:21]}  f4 {[%clk 0:00:30]} 51. Ke5 {[%clk 0:00:19]}  Be3 {[%clk 0:00:29]} 52. Ke4 {[%clk 0:00:18]}  a5 {[%clk 0:00:27]} 53. Ra1 {[%clk 0:00:16]}  Bd2 {[%clk 0:00:27]} 54. Rd1 {[%clk 0:00:17]}  Bb4 {[%clk 0:00:25]} 55. Rc1 {[%clk 0:00:17]}  g4 {[%clk 0:00:21]} 56. hxg4 {[%clk 0:00:15]}  Kg5 {[%clk 0:00:21]} 57. Kf3 {[%clk 0:00:16]}  h3 {[%clk 0:00:21]} 58. Rh1 {[%clk 0:00:15]}  Kh4 {[%clk 0:00:21]} 59. Kxf4 {[%clk 0:00:15]}  a4 {[%clk 0:00:21]} 60. Rb1 {[%clk 0:00:14]}  h2 {[%clk 0:00:19]} 61. Kf5 {[%clk 0:00:06]}  Bc5 {[%clk 0:00:16]} 62. g5 {[%clk 0:00:06]}  Bg1 {[%clk 0:00:15]} 63. Rb8 {[%clk 0:00:06]}  a3 {[%clk 0:00:14]} 64. g6 {[%clk 0:00:05]}  Bd4 {[%clk 0:00:12]} 65. Rb7 {[%clk 0:00:02]}  a2 {[%clk 0:00:10]} 66. Rh7+ {[%clk 0:00:03]}  Kg3 {[%clk 0:00:10]} 67. g7 {[%clk 0:00:01]}  Bxg7 {[%clk 0:00:09]} 68. Rxg7+ {[%clk 0:00:02]}  Kf3 {[%clk 0:00:09]} 69. Rh7 {[%clk 0:00:01]}  a1=Q {[%clk 0:00:09]} 70. Rxh2 {[%clk 0:00:01]}  Qa5+ {[%clk 0:00:09]} 71. Kg6 {[%clk 0:00:02]}  Qb6+ {[%clk 0:00:08]} 72. Kh7 {[%clk 0:00:02]}  Qc7+ {[%clk 0:00:08]} 0-1


[Site "https://www.chess.com"]

[Event "Titled Tuesday Blitz October 26 2021"]
[White "Baskin, Robert"]
[Black "Gledura, Benjamin"]
[WhiteFideId "24662402"]
[BlackFideId "712779"]
[WhiteElo "2521"]
[BlackElo "2326"]
[Result "1-0"]
[Round "03"]
[TimeControl "180+1"]
[Date "2021.10.26"]
[WhiteClock "0:00:10"]
[BlackClock "0:00:58"]

1. e4 {[%clk 0:03:00]}  c6 {[%clk 0:02:56]} 2. d4 {[%clk 0:02:56]}  d5 {[%clk 0:02:55]} 3. e5 {[%clk 0:02:56]}  Bf5 {[%clk 0:02:54]} 4. Nc3 {[%clk 0:02:56]}  e6 {[%clk 0:02:54]} 5. g4 {[%clk 0:02:56]}  Bg6 {[%clk 0:02:54]} 6. Nge2 {[%clk 0:02:56]}  h6 {[%clk 0:02:54]} 7. h4 {[%clk 0:02:49]}  Bh7 {[%clk 0:02:53]} 8. Be3 {[%clk 0:02:42]}  Nd7 {[%clk 0:02:46]} 9. h5 {[%clk 0:02:37]}  Ne7 {[%clk 0:02:45]} 10. f4 {[%clk 0:02:32]}  c5 {[%clk 0:02:44]} 11. dxc5 {[%clk 0:01:55]}  Nc6 {[%clk 0:02:38]} 12. Nd4 {[%clk 0:01:48]}  Nxc5 {[%clk 0:02:34]} 13. Bb5 {[%clk 0:01:43]}  Rc8 {[%clk 0:02:32]} 14. Qe2 {[%clk 0:01:30]}  Ne4 {[%clk 0:02:30]} 15. Nxe4 {[%clk 0:01:27]}  Bxe4 {[%clk 0:02:30]} 16. Rh3 {[%clk 0:01:19]}  Qa5+ {[%clk 0:02:21]} 17. c3 {[%clk 0:01:18]}  Be7 {[%clk 0:02:21]} 18. f5 {[%clk 0:00:52]}  a6 {[%clk 0:01:52]} 19. Bxc6+ {[%clk 0:00:50]}  bxc6 {[%clk 0:01:53]} 20. fxe6 {[%clk 0:00:49]}  fxe6 {[%clk 0:01:53]} 21. Nxe6 {[%clk 0:00:45]}  Kd7 {[%clk 0:01:53]} 22. Nxg7 {[%clk 0:00:35]}  Rb8 {[%clk 0:01:50]} 23. e6+ {[%clk 0:00:24]}  Kc8 {[%clk 0:01:49]} 24. Nf5 {[%clk 0:00:23]}  Ba3 {[%clk 0:01:48]} 25. b4 {[%clk 0:00:14]}  Qa4 {[%clk 0:01:43]} 26. Nd6+ {[%clk 0:00:12]}  Kc7 {[%clk 0:01:34]} 27. Nxe4 {[%clk 0:00:11]}  dxe4 {[%clk 0:01:30]} 28. Bf4+ {[%clk 0:00:12]}  Kb7 {[%clk 0:01:31]} 29. Qxe4 {[%clk 0:00:12]}  Rbe8 {[%clk 0:01:29]} 30. Rd1 {[%clk 0:00:12]}  Re7 {[%clk 0:01:21]} 31. Rd7+ {[%clk 0:00:12]}  Rxd7 {[%clk 0:01:21]} 32. exd7 {[%clk 0:00:13]}  Qb5 {[%clk 0:01:11]} 33. Qe5 {[%clk 0:00:11]}  Qxe5+ {[%clk 0:01:00]} 34. Bxe5 {[%clk 0:00:12]}  Rd8 {[%clk 0:01:00]} 35. Rd3 {[%clk 0:00:12]}  c5 {[%clk 0:00:58]} 36. Bf6 {[%clk 0:00:12]}  c4 {[%clk 0:00:58]} 37. Rd1 {[%clk 0:00:10]} 1-0


[Site "https://www.chess.com"]

[Event "Titled Tuesday Blitz October 26 2021"]
[White "Begmuratov, Khumoyun"]
[Black "Hindermann, Felix"]
[WhiteFideId "14210207"]
[BlackFideId "1305212"]
[WhiteElo "1948"]
[BlackElo "2206"]
[Result "1-0"]
[Round "03"]
[TimeControl "180+1"]
[Date "2021.10.26"]
[WhiteClock "0:00:03"]
[BlackClock "0:00:14"]

1. Nf3 {[%clk 0:03:00]}  e6 {[%clk 0:03:00]} 2. b3 {[%clk 0:03:00]}  b6 {[%clk 0:03:00]} 3. Bb2 {[%clk 0:03:01]}  Bb7 {[%clk 0:03:01]} 4. e3 {[%clk 0:03:02]}  f5 {[%clk 0:03:01]} 5. d4 {[%clk 0:03:01]}  Nf6 {[%clk 0:03:02]} 6. Bd3 {[%clk 0:03:02]}  g6 {[%clk 0:03:03]} 7. O-O {[%clk 0:03:02]}  Bg7 {[%clk 0:03:03]} 8. Nbd2 {[%clk 0:03:03]}  O-O {[%clk 0:03:04]} 9. c4 {[%clk 0:03:03]}  d6 {[%clk 0:03:04]} 10. Qc2 {[%clk 0:03:03]}  Nbd7 {[%clk 0:03:04]} 11. Rfe1 {[%clk 0:03:03]}  Nh5 {[%clk 0:02:49]} 12. b4 {[%clk 0:02:36]}  a5 {[%clk 0:02:47]} 13. bxa5 {[%clk 0:02:34]}  Rxa5 {[%clk 0:02:46]} 14. Bc3 {[%clk 0:02:28]}  Ra8 {[%clk 0:02:46]} 15. a4 {[%clk 0:02:27]}  e5 {[%clk 0:02:45]} 16. dxe5 {[%clk 0:02:16]}  dxe5 {[%clk 0:02:45]} 17. e4 {[%clk 0:02:16]}  Nc5 {[%clk 0:02:41]} 18. Bf1 {[%clk 0:02:10]}  fxe4 {[%clk 0:02:33]} 19. Nxe4 {[%clk 0:01:53]}  Nxe4 {[%clk 0:02:02]} 20. Rxe4 {[%clk 0:01:52]}  Bxe4 {[%clk 0:02:02]} 21. Qxe4 {[%clk 0:01:53]}  Rf4 {[%clk 0:02:01]} 22. Qe3 {[%clk 0:01:42]}  e4 {[%clk 0:01:55]} 23. Bxg7 {[%clk 0:01:38]}  Kxg7 {[%clk 0:01:56]} 24. Nd4 {[%clk 0:01:30]}  Qf6 {[%clk 0:01:55]} 25. Rd1 {[%clk 0:01:15]}  Rf8 {[%clk 0:01:40]} 26. Rd2 {[%clk 0:01:13]}  c5 {[%clk 0:01:36]} 27. Nb5 {[%clk 0:01:09]}  Qa1 {[%clk 0:01:18]} 28. Nc7 {[%clk 0:00:55]}  Qe5 {[%clk 0:00:52]} 29. Nd5 {[%clk 0:00:48]}  R4f7 {[%clk 0:00:51]} 30. Nxb6 {[%clk 0:00:41]}  Nf4 {[%clk 0:00:48]} 31. Nd7 {[%clk 0:00:37]}  Qg5 {[%clk 0:00:46]} 32. Nxf8 {[%clk 0:00:35]}  Rxf8 {[%clk 0:00:47]} 33. Rd7+ {[%clk 0:00:33]}  Kh6 {[%clk 0:00:47]} 34. a5 {[%clk 0:00:18]}  Rf6 {[%clk 0:00:41]} 35. Qg3 {[%clk 0:00:12]}  Qh5 {[%clk 0:00:36]} 36. Rd2 {[%clk 0:00:09]}  g5 {[%clk 0:00:17]} 37. Rb2 {[%clk 0:00:05]}  Qd1 {[%clk 0:00:16]} 38. h4 {[%clk 0:00:03]}  g4 {[%clk 0:00:15]} 39. Rb6 {[%clk 0:00:02]}  Rxb6 {[%clk 0:00:13]} 40. Qxf4+ {[%clk 0:00:02]}  Kh5 {[%clk 0:00:14]} 41. Qg5# {[%clk 0:00:03]} 1-0


[Site "https://www.chess.com"]